fUSD/lending_fUSD_20250606
["ID","MTS","AMOUNT","RATE_DAILY","PERIOD"]
[364649545,1749179442096,-864.6,0.00030164,7]
[364649547,1749179442105,-480.0,0.00030164,7]
[364649550,1749179442115,-587.05638509,0.00030164,7]
[364649552,1749179442125,-480.0,0.00030164,7]
[364649554,1749179442134,-480.0,0.00030164,7]
[364649556,1749179442144,-480.0,0.00030164,7]
[364649558,1749179442153,-536.3,0.00030164,7]
[364649560,1749179442163,-480.0,0.00030164,7]
[364649562,1749179442172,-480.0,0.00030164,7]
[364649564,1749179442182,-480.0,0.00030164,7]
[364649566,1749179442191,-480.0,0.00030164,7]
[364649568,1749179442201,-480.0,0.00030164,7]
[364649570,1749179442210,-480.0,0.00030164,7]
[364649572,1749179442220,-480.0,0.00030164,7]
[364649574,1749179442229,-480.0,0.00030164,7]
[364649576,1749179442239,-683.56,0.00030164,7]
[364649578,1749179442248,-663.56,0.00030164,7]
[364649580,1749179442259,-480.0,0.00030164,7]
[364649582,1749179442268,-480.0,0.00030164,7]
[364649584,1749179442278,-480.0,0.00030164,7]
[364649587,1749179442290,-480.0,0.00030164,7]
[364649589,1749179442300,-480.0,0.00030164,7]
[364649591,1749179442310,-480.0,0.00030164,7]
[364649593,1749179442320,-211.33821141,0.00030164,7]
[364649595,1749179442329,-480.0,0.00030164,7]
[364649597,1749179442340,-480.0,0.00030164,7]
[364649599,1749179442350,-480.0,0.00030164,7]
[364649601,1749179442359,-480.0,0.00030164,7]
[364649603,1749179442369,-480.0,0.00030164,7]
[364649605,1749179442379,-480.0,0.00030164,7]
[364649606,1749179442388,-480.0,0.00030164,7]
[364649607,1749179442397,-499.23357579,0.00030164,7]
[364649608,1749179442407,-480.0,0.00030164,7]
[364649609,1749179442416,-495.45435143,0.00030164,7]
[364649610,1749179442426,-480.0,0.00030164,7]
[364649611,1749179442435,-480.0,0.00030164,7]
[364649612,1749179442444,-500.07556787,0.00030164,7]
[364649613,1749179442457,-496.35132524,0.00030164,7]
[364649614,1749179442475,-489.95522101,0.00030164,7]
[364649616,1749179442485,-480.0,0.00030164,7]
[364649618,1749179442495,-480.0,0.00030164,7]
[364649620,1749179442505,-480.0,0.00030164,7]
[364649623,1749179442516,-494.51200056,0.00030164,7]
[364649625,1749179442530,-480.0,0.00030164,7]
[364649627,1749179442541,-480.0,0.00030164,7]
[364649629,1749179442551,-480.0,0.00030164,7]
[364649631,1749179442560,-480.0,0.00030164,7]
[364649633,1749179442571,-494.70904521,0.00030164,7]
[364649635,1749179442581,-485.86,0.00030164,7]
[364649637,1749179442590,-480.0,0.00030164,7]
[364649639,1749179442600,-480.0,0.00030164,7]
[364649641,1749179442610,-828.95,0.00030164,7]
[364649643,1749179442620,-480.0,0.00030164,7]
[364649645,1749179442630,-492.39931651,0.00030164,7]
[364649647,1749179442640,-480.0,0.00030164,7]
[364649649,1749179442649,-480.0,0.00030164,7]
[364649651,1749179442659,-480.0,0.00030164,7]
[364649653,1749179442670,-480.0,0.00030164,7]
[364649655,1749179442680,-642.6,0.00030164,7]
[364649657,1749179442692,-480.0,0.00030164,7]
[364649659,1749179442709,-480.0,0.00030164,7]
[364649661,1749179442724,-753.55,0.00030164,7]
[364649663,1749179442734,-480.0,0.00030164,7]
[364649665,1749179442744,-480.0,0.00030164,7]
[364649668,1749179442754,-441.42524501,0.00030164,7]
[364649670,1749179442764,-484.47396071,0.00030164,7]
[364649672,1749179442774,-480.0,0.00030164,7]
[364649674,1749179442783,-480.0,0.00030164,7]
[364649676,1749179442793,-485.54724894,0.00030164,7]
[364649678,1749179442804,-480.0,0.00030164,7]
[364649680,1749179442813,-480.0,0.00030164,7]
[364649682,1749179442823,-751.82,0.00030164,7]
[364649684,1749179442833,-480.0,0.00030164,7]
[364649686,1749179442843,-480.0,0.00030164,7]
[364649688,1749179442853,-1794.01,0.00030164,7]
[364649690,1749179442863,-868.53,0.00030164,7]
[364649693,1749179442874,-504.60064045,0.00030164,7]
[364649695,1749179442884,-1357.84726863,0.00030164,30]
[364649697,1749179442895,-1003.95,0.00030164,7]
[364649699,1749179442905,-483.53092979,0.00030164,7]
[364649701,1749179442914,-480.0,0.00030164,7]
[364649703,1749179442924,-178.33895385,0.00030164,7]
[364649705,1749179442934,-490.7865181,0.00030164,7]
[364649707,1749179442943,-802.58,0.00030164,7]
[364649709,1749179442954,-1209.4,0.00030164,7]
[364649711,1749179442964,-936.96,0.00030164,7]
[364649714,1749179442974,-788.97,0.00030164,7]
[364649716,1749179442984,-494.55999341,0.00030164,7]
[364649718,1749179442995,-480.0,0.00030164,7]
[364649720,1749179443006,-480.0,0.00030164,7]
[364649722,1749179443016,-1390.52,0.00030164,7]
[364649724,1749179443026,-490.68484751,0.00030164,7]
[364649726,1749179443035,-494.03,0.00030164,7]
[364649728,1749179443045,-498.67864343,0.00030164,7]
[364649730,1749179443055,-480.0,0.00030164,7]
[364649733,1749179443065,-449.89806166,0.00030164,7]
[364649735,1749179443075,-776.94,0.00030164,7]
[364649737,1749179443085,-480.0,0.00030164,7]
[364649739,1749179443095,-550.34555804,0.00030164,7]
[364649741,1749179443105,-480.0,0.00030164,7]
[364649744,1749179443116,-232.6460603,0.00030164,7]
[364649746,1749179443126,-1263.9,0.00030164,7]
[364649748,1749179443135,-480.0,0.00030164,7]
[364649751,1749179443145,-1556.97,0.00030164,7]
[364649753,1749179443156,-1197.89,0.00030164,7]
[364649756,1749179443166,-560.01681825,0.00030164,7]
[364649759,1749179443176,-760.27,0.00030164,7]
[364649763,1749179443187,-480.0,0.00030164,7]
[364649766,1749179443197,-491.28247141,0.00030164,7]
[364649769,1749179443207,-480.0,0.00030164,7]
[364649772,1749179443216,-870.99,0.00030164,7]
[364649775,1749179443226,-492.25807826,0.00030164,7]
[364649779,1749179443235,-480.0,0.00030164,7]
[364649782,1749179443245,-538.11,0.00030164,7]
[364649785,1749179443255,-480.0,0.00030164,7]
[364649788,1749179443265,-1740.57,0.00030164,7]
[364649791,1749179443275,-480.0,0.00030164,7]
[364649794,1749179443284,-822.93,0.00030164,7]
[364649797,1749179443295,-489.29167731,0.00030164,7]
[364649800,1749179443304,-509.38911047,0.00030164,7]
[364649804,1749179443315,-480.0,0.00030164,7]
[364649807,1749179443325,-495.7120733,0.00030164,7]
[364649812,1749179443335,-480.0,0.00030164,7]
[364649818,1749179443344,-1100.82,0.00030164,7]
[364649821,1749179443354,-480.0,0.00030164,7]
[364649825,1749179443364,-480.0,0.00030164,7]
[364649829,1749179443374,-480.0,0.00030164,7]
[364649835,1749179443385,-452.88,0.00030164,7]
[364649840,1749179443395,-480.0,0.00030164,7]
[364649845,1749179443406,-480.0,0.00030164,7]
[364649848,1749179443417,-642.56,0.00030164,7]
[364649851,1749179443427,-480.0,0.00030164,7]
[364649853,1749179443438,-480.0,0.00030164,7]
[364649856,1749179443448,-480.0,0.00030164,7]
[364649859,1749179443458,-480.0,0.00030164,7]
[364649862,1749179443468,-867.76,0.00030164,7]
[364649865,1749179443478,-489.00516933,0.00030164,7]
[364649867,1749179443488,-602.28,0.00030164,7]
[364649869,1749179443498,-480.0,0.00030164,7]
[364649871,1749179443508,-440.14668367,0.00030164,7]
[364649874,1749179443520,-784.69,0.00030164,7]
[364649878,1749179443531,-480.0,0.00030164,7]
[364649881,1749179443541,-606.92,0.00030164,7]
[364649884,1749179443551,-500.10509747,0.00030164,7]
[364649886,1749179443562,-480.0,0.00030164,7]
[364649888,1749179443573,-474.9211908,0.00030164,7]
[364649890,1749179443584,-1303.79,0.00030164,7]
[364649892,1749179443595,-480.0,0.00030164,7]
[364649894,1749179443605,-480.0,0.00030164,7]
[364649896,1749179443615,-480.0,0.00030164,7]
[364649898,1749179443626,-1000.0,0.00030164,7]
[364649900,1749179443637,-499.96858413,0.00030164,7]
[364649902,1749179443647,-502.92530979,0.00030164,7]
[364649903,1749179443658,-491.51365123,0.00030164,7]
[364649905,1749179443669,-1397.56,0.00030164,7]
[364649907,1749179443680,-480.0,0.00030164,7]
[364649908,1749179443691,-1243.43,0.00030164,7]
[364649909,1749179443701,-747.63,0.00030164,7]
[364649910,1749179443711,-480.0,0.00030164,7]
[364649911,1749179443722,-479.58928865,0.00030164,7]
[364649912,1749179443732,-645.04,0.00030164,7]
[364649913,1749179443743,-480.0,0.00030164,7]
[364649914,1749179443754,-480.0,0.00030164,7]
[364649916,1749179443764,-480.0,0.00030164,7]
[364649918,1749179443775,-537.17,0.00030164,7]
[364649920,1749179443785,-480.0,0.00030164,7]
[364649922,1749179443796,-480.0,0.00030164,7]
[364649924,1749179443806,-480.0,0.00030164,7]
[364649926,1749179443817,-489.5153713,0.00030164,7]
[364649928,1749179443827,-480.0,0.00030164,7]
[364649930,1749179443838,-480.0,0.00030164,7]
[364649931,1749179443849,-1101.62,0.00030164,7]
[364649932,1749179443860,-480.0,0.00030164,7]
[364649933,1749179443871,-480.0,0.00030164,7]
[364649934,1749179443882,-1281.01,0.00030164,7]
[364649935,1749179443893,-491.41990525,0.00030164,7]
[364649936,1749179443903,-480.0,0.00030164,7]
[364649937,1749179443913,-559.14076901,0.00030164,7]
[364649938,1749179443924,-490.81977368,0.00030164,7]
[364649939,1749179443934,-489.83533206,0.00030164,7]
[364649940,1749179443944,-480.0,0.00030164,7]
[364649941,1749179443953,-571.41595372,0.00030164,7]
[364649942,1749179443964,-480.0,0.00030164,7]
[364649943,1749179443974,-202.13031356,0.00030164,7]
[364649944,1749179443984,-480.0,0.00030164,7]
[364649945,1749179443995,-836.62,0.00030164,7]
[364649946,1749179444005,-1123.23,0.00030164,7]
[364649947,1749179444014,-342.0337611,0.00030164,7]
[364649948,1749179444024,-480.0,0.00030164,7]
[364649949,1749179444035,-480.0,0.00030164,7]
[364649950,1749179444044,-480.0,0.00030164,7]
[364649951,1749179444054,-480.0,0.00030164,7]
[364649952,1749179444064,-760.65,0.00030164,7]
[364649953,1749179444074,-480.0,0.00030164,7]
[364649954,1749179444085,-495.22871544,0.00030164,7]
[364649955,1749179444095,-480.0,0.00030164,7]
[364649956,1749179444105,-822.01,0.00030164,7]
[364649957,1749179444115,-1831.43,0.00030164,7]
[364649958,1749179444126,-480.0,0.00030164,7]
[364649959,1749179444136,-994.75,0.00030164,7]
[364649960,1749179444147,-480.0,0.00030164,7]
[364649961,1749179444157,-492.7162033,0.00030164,7]
[364649962,1749179444167,-491.22652941,0.00030164,7]
[364649963,1749179444178,-1111.29,0.00030164,7]
[364649964,1749179444188,-494.47936792,0.00030164,7]
[364649965,1749179444198,-2249.11,0.00030164,7]
[364649966,1749179444208,-773.69,0.00030164,7]
[364649967,1749179444219,-514.87,0.00030164,7]
[364649968,1749179444229,-480.0,0.00030164,7]
[364649969,1749179444239,-480.0,0.00030164,7]
[364649970,1749179444250,-430.58685559,0.00030164,7]
[364649971,1749179444260,-1250.01,0.00030164,7]
[364649972,1749179444270,-1057.29,0.00030164,7]
[364649973,1749179444280,-1074.02,0.00030164,7]
[364649974,1749179444290,-480.0,0.00030164,7]
[364649975,1749179444300,-480.0,0.00030164,7]
[364649976,1749179444312,-495.92740712,0.00030164,7]
[364649977,1749179444323,-480.0,0.00030164,7]
[364649978,1749179444332,-668.13,0.00030164,7]
[364649979,1749179444343,-480.0,0.00030164,7]
[364649980,1749179444353,-480.0,0.00030164,7]
[364649981,1749179444363,-480.0,0.00030164,7]
[364649982,1749179444373,-480.0,0.00030164,7]
[364649983,1749179444383,-1235.89,0.00030164,7]
[364649984,1749179444394,-966.61,0.00030164,7]
[364649985,1749179444647,-480.0,0.00030164,7]
[364649986,1749179444669,-503.89715979,0.00030164,7]
[364649987,1749179444680,-194.00167207,0.00030164,7]
[364649988,1749179444690,-854.14,0.00030164,7]
[364649989,1749179444700,-480.0,0.00030164,7]
[364649990,1749179444709,-480.0,0.00030164,7]
[364649991,1749179444719,-480.0,0.00030164,7]
[364649992,1749179444729,-490.32581632,0.00030164,7]
[364649993,1749179444738,-554.17,0.00030164,7]
[364649994,1749179444748,-480.0,0.00030164,7]
[364649995,1749179444757,-502.34256146,0.00030164,7]
[364649996,1749179444766,-489.59481126,0.00030164,7]
[364649997,1749179444776,-480.0,0.00030164,7]
[364649998,1749179444785,-480.0,0.00030164,7]
[364649999,1749179444794,-480.0,0.00030164,7]
[364650000,1749179444805,-480.0,0.00030164,7]
[364650001,1749179444815,-480.0,0.00030164,7]
[364650002,1749179444824,-480.0,0.00030164,7]
[364650003,1749179444834,-567.54,0.00030164,7]
[364650004,1749179444843,-732.86,0.00030164,7]
[364650005,1749179444853,-1787.82,0.00030164,7]
[364650006,1749179444863,-480.0,0.00030164,7]
[364650007,1749179444872,-480.0,0.00030164,7]
[364650008,1749179444881,-480.0,0.00030164,7]
[364650009,1749179444891,-803.44,0.00030164,30]
[364650010,1749179444900,-1193.33,0.00030164,7]
[364650011,1749179444910,-480.0,0.00030164,7]
[364650012,1749179444921,-2152.68,0.00030164,7]
[364650013,1749179444933,-801.95,0.00030164,7]
[364650014,1749179444943,-2618.88,0.00030164,7]
[364650015,1749179444954,-1132.95,0.00030164,7]
[364650016,1749179444964,-480.0,0.00030164,7]
[364650017,1749179444973,-187.24343611,0.00030164,7]
[364650018,1749179444983,-839.78,0.00030164,7]
[364650019,1749179444993,-72830.52,0.00030164,7]
[364650020,1749179445002,-486.88740773,0.00030164,7]
[364650021,1749179445012,-480.0,0.00030164,7]
[364650022,1749179445023,-1827.88,0.00030164,7]
[364650023,1749179445032,-480.0,0.00030164,7]
[364650024,1749179445041,-611.58523221,0.00030164,7]
[364650025,1749179445050,-480.0,0.00030164,7]
[364650026,1749179445060,-3861.74,0.00030164,7]
[364650027,1749179445069,-1900.55,0.00030164,7]
[364650028,1749179445078,-426.71356169,0.00030164,7]
[364650029,1749179445088,-480.0,0.00030164,7]
[364650030,1749179445097,-1026.29,0.00030164,7]
[364650031,1749179445107,-480.0,0.00030164,7]
[364650032,1749179445116,-480.0,0.00030164,7]
[364650033,1749179445125,-480.0,0.00030164,7]
[364650034,1749179445134,-472.22186935,0.00030164,7]
[364650035,1749179445144,-1279.8,0.00030164,7]
[364650036,1749179445154,-2062.28,0.00030164,7]
[364650037,1749179445163,-1648.71,0.00030164,7]
[364650038,1749179445173,-480.0,0.00030164,7]
[364650039,1749179445182,-490.98601493,0.00030164,7]
[364650040,1749179445191,-480.0,0.00030164,7]
[364650041,1749179445201,-1254.13,0.00030164,7]
[364650042,1749179445211,-589.19,0.00030164,7]
[364650043,1749179445220,-480.0,0.00030164,7]
[364650044,1749179445230,-480.0,0.00030164,7]
[364650045,1749179445239,-480.0,0.00030164,7]
[364650046,1749179445248,-480.0,0.00030164,7]
[364650047,1749179445258,-943.16,0.00030164,7]
[364650048,1749179445267,-480.0,0.00030164,7]
[364650049,1749179445277,-521.34,0.00030164,7]
[364650050,1749179445287,-480.0,0.00030164,7]
[364650051,1749179445296,-1316.96,0.00030164,7]
[364650052,1749179445306,-1158.91,0.00030164,7]
[364650053,1749179445315,-484.17425303,0.00030164,7]
[364650054,1749179445325,-480.0,0.00030164,7]
[364650055,1749179445334,-786.49,0.00030164,7]
[364650056,1749179445344,-4091.81,0.00030164,7]
[364650057,1749179445353,-480.0,0.00030164,7]
[364650058,1749179445362,-484.28248514,0.00030164,7]
[364650059,1749179445372,-1465.54,0.00030164,7]
[364650060,1749179445382,-504.4,0.00030164,7]
[364650061,1749179445392,-480.0,0.00030164,7]
[364650062,1749179445402,-853.19,0.00030164,7]
[364650063,1749179445411,-480.0,0.00030164,7]
[364650064,1749179445421,-662.26,0.00030164,7]
[364650065,1749179445431,-1228.47,0.00030164,7]
[364650066,1749179445440,-1816.95,0.00030164,7]
[364650067,1749179445449,-1863.11,0.00030164,7]
[364650068,1749179445458,-487.95206151,0.00030164,7]
[364650069,1749179445468,-552.88,0.00030164,7]
[364650070,1749179445477,-480.0,0.00030164,7]
[364650071,1749179445487,-489.64717742,0.00030164,7]
[364650072,1749179445496,-1618.72,0.00030164,7]
[364650073,1749179445506,-500.0,0.00030164,2]
[364650074,1749179445516,-6408.89,0.00030164,7]
[364650075,1749179445530,-500.0,0.00030164,2]
[364650076,1749179445542,-480.0,0.00030164,7]
[364650077,1749179445552,-1013.55,0.00030164,7]
[364650078,1749179445564,-521.18,0.00030164,7]
[364650079,1749179445575,-2146.45,0.00030164,7]
[364650080,1749179445585,-480.0,0.00030164,7]
[364650081,1749179445596,-2112.56,0.00030164,7]
[364650082,1749179445606,-1948.23,0.00030164,7]
[364650083,1749179445616,-585.0452618,0.00030164,7]
[364650084,1749179445625,-2275.09,0.00030164,7]
[364650085,1749179445635,-480.0,0.00030164,7]
[364650086,1749179445644,-508.94,0.00030164,7]
[364650087,1749179445655,-480.0,0.00030164,7]
[364650088,1749179445664,-480.0,0.00030164,7]
[364650089,1749179445673,-495.66074921,0.00030164,7]
[364650090,1749179445683,-5638.63,0.00030164,7]
[364650091,1749179445694,-480.0,0.00030164,7]
[364650092,1749179445704,-480.0,0.00030164,7]
[364650093,1749179445713,-12357.05,0.00030164,7]
[364650094,1749179445724,-815.85,0.00030164,7]
[364650095,1749179445734,-1453.68,0.00030164,7]
[364650096,1749179445744,-1580.84,0.00030164,7]
[364650097,1749179445755,-2059.2,0.00030164,7]
[364650098,1749179445764,-1418.88,0.00030164,7]
[364650099,1749179445774,-957.05,0.00030164,7]
[364650100,1749179445783,-1374.65,0.00030164,7]
[364650101,1749179445792,-2794.84,0.00030164,7]
[364650102,1749179445802,-548.14,0.00030164,7]
[364650103,1749179445811,-1908.27,0.00030164,7]
[364650104,1749179445824,-689.75,0.00030164,7]
[364650105,1749179445835,-2964.95,0.00030164,7]
[364650106,1749179445846,-722.53,0.00030164,7]
[364650107,1749179445855,-480.0,0.00030164,7]
[364650108,1749179445865,-1543.91,0.00030164,7]
[364650109,1749179445875,-484.09096895,0.00030164,7]
[364650110,1749179445885,-3599.42,0.00030164,7]
[364650111,1749179445895,-480.0,0.00030164,7]
[364650112,1749179445904,-4897.24,0.00030164,7]
[364650113,1749179445913,-795.58,0.00030164,7]
[364650114,1749179445923,-480.0,0.00030164,7]
[364650115,1749179445932,-480.0,0.00030164,7]
[364650116,1749179445942,-480.0,0.00030164,7]
[364650117,1749179445951,-750.41,0.00030164,7]
[364650118,1749179445960,-480.0,0.00030164,7]
[364650119,1749179445969,-1327.39,0.00030164,2]
[364650120,1749179445980,-480.0,0.00030164,7]
[364650121,1749179445989,-480.0,0.00030164,7]
[364650122,1749179446000,-3944.18,0.00030164,7]
[364650123,1749179446010,-480.0,0.00030164,7]
[364650124,1749179446019,-480.0,0.00030164,7]
[364650125,1749179446028,-770.33,0.00030164,7]
[364650126,1749179446037,-770.33,0.00030164,7]
[364650127,1749179446047,-770.33,0.00030164,7]
[364650128,1749179446056,-770.33,0.00030164,7]
[364650129,1749179446066,-1255.48,0.00030164,7]
[364650130,1749179446075,-9558.23,0.00030164,7]
[364650131,1749179446084,-480.0,0.00030164,7]
[364650132,1749179446093,-480.0,0.00030164,7]
[364650133,1749179446103,-480.0,0.00030164,7]
[364650135,1749179446112,-1699.63,0.00030164,7]
[364650137,1749179446121,-381.11950265,0.00030164,7]
[364650138,1749179446131,-1071.96,0.00030164,7]
[364650139,1749179446140,-494.36,0.00030164,7]
[364650140,1749179446149,-480.0,0.00030164,7]
[364650141,1749179446159,-1689.38,0.00030164,7]
[364650142,1749179446168,-497.57580533,0.00030164,7]
[364650143,1749179446178,-2437.94,0.00030164,7]
[364650144,1749179446187,-480.0,0.00030164,7]
[364650145,1749179446196,-480.0,0.00030164,7]
[364650146,1749179446206,-433.36244355,0.00030164,7]
[364650148,1749179446215,-410.61382182,0.00030164,7]
[364650150,1749179446808,-961.64617818,0.00030164,7]
[364650151,1749179446821,-1412.54,0.00030164,7]
[364650152,1749179446833,-5638.44,0.00030164,7]
[364650153,1749179446847,-4769.8,0.00030164,7]
[364650154,1749179446859,-1296.52,0.00030164,7]
[364650155,1749179446872,-3557.02,0.00030164,7]
[364650156,1749179446885,-480.0,0.00030164,7]
[364650157,1749179446897,-492.69618313,0.00030164,7]
[364650158,1749179446908,-480.0,0.00030164,7]
[364650159,1749179446918,-480.0,0.00030164,7]
[364650160,1749179446930,-480.0,0.00030164,7]
[364650161,1749179446943,-487.27699491,0.00030164,7]
[364650163,1749179446955,-480.0,0.00030164,7]
[364650166,1749179446967,-480.0,0.00030164,7]
[364650167,1749179446979,-1712.42,0.00030164,7]
[364650168,1749179446991,-1332.75,0.00030164,7]
[364650169,1749179447004,-3068.46,0.00030164,7]
[364650170,1749179447016,-480.0,0.00030164,7]
[364650171,1749179447028,-486.50801834,0.00030164,7]
[364650172,1749179447041,-673.44,0.00030164,7]
[364650173,1749179447053,-1862.65,0.00030164,7]
[364650174,1749179447068,-1000.0,0.00030164,7]
[364650175,1749179447079,-480.0,0.00030164,7]
[364650176,1749179447092,-492.07708573,0.00030164,7]
[364650177,1749179447103,-1204.89,0.00030164,7]
[364650178,1749179447116,-1047.8,0.00030164,7]
[364650179,1749179447126,-480.0,0.00030164,7]
[364650180,1749179447138,-480.0,0.00030164,7]
[364650181,1749179447149,-483.41305182,0.00030164,7]
[364650182,1749179447161,-894.12076981,0.00030164,7]
[364650183,1749179447195,-351.22923019,0.00030164,7]
[364650184,1749179447206,-483.95279051,0.00030164,7]
[364650185,1749179447217,-1743.5166103,0.00030164,7]
[364650186,1749179447230,-1535.799521,0.00030164,7]
[364650187,1749179447253,-1000.0,0.00030117,2]
[364650188,1749179447266,-726.7638687,0.00030164,7]
[364650189,1749179447280,-1842.48,0.00030164,7]
[364650190,1749179447291,-604.7,0.00030164,7]
[364650191,1749179447301,-480.0,0.00030164,7]
[364650192,1749179447312,-426.73080055,0.00030164,7]
[364650193,1749179447322,-2175.3,0.00030164,7]
[364650194,1749179447334,-444.97232061,0.00030164,7]
[364650195,1749179447348,-168.35247727,0.00030164,7]
[364650196,1749179447359,-934.0,0.00030164,7]
[364650197,1749179447370,-401.79896918,0.00030164,7]
[364650198,1749179447380,-480.0,0.00030164,7]
[364650199,1749179447391,-580.78,0.00030164,7]
[364650200,1749179447403,-322.88096864,0.00030164,7]
[364650201,1749179447413,-480.0,0.00030164,7]
[364650202,1749179447429,-500.0,0.00030164,7]
[364650203,1749179447440,-500.0,0.00030164,7]
[364650204,1749179447451,-853.79,0.00030164,7]
[364650205,1749179447462,-974.88,0.00030164,7]
[364650206,1749179447473,-480.0,0.00030164,7]
[364650207,1749179447484,-489.93631972,0.00030164,7]
[364650208,1749179447496,-1840.27,0.00030164,7]
[364650209,1749179447507,-480.0,0.00030164,7]
[364650210,1749179447518,-480.0,0.00030164,7]
[364650211,1749179447532,-1190.76,0.00030164,7]
[364650212,1749179447543,-480.0,0.00030164,7]
[364650213,1749179447554,-11519.32244572,0.00030164,7]
[364650214,1749179449207,-204.0,0.00027095,2]
[364650215,1749179449218,-1000.0,0.00028781,2]
[364650216,1749179449229,-351.0,0.00030163,2]
[364650217,1749179449239,-4560.48755428,0.00030164,7]
[364650218,1749179449251,-480.0,0.00030164,7]
[364650219,1749179449261,-480.0,0.00030164,7]
[364650220,1749179449273,-905.97,0.00030164,7]
[364650221,1749179449284,-480.0,0.00030164,7]
[364650222,1749179449295,-985.33,0.00030164,7]
[364650223,1749179449306,-246.04895432,0.00030164,7]
[364650224,1749179449317,-2045.67,0.00030164,7]
[364650225,1749179449328,-798.63,0.00030164,7]
[364650226,1749179449338,-480.0,0.00030164,7]
[364650227,1749179449348,-512.89820033,0.00030164,7]
[364650228,1749179449359,-480.0,0.00030164,7]
[364650229,1749179449370,-908.38,0.00030164,7]
[364650230,1749179449380,-480.0,0.00030164,7]
[364650231,1749179449390,-2605.82,0.00030164,7]
[364650232,1749179449401,-480.0,0.00030164,7]
[364650233,1749179449413,-2319.58,0.00030164,7]
[364650234,1749179449423,-487.38858937,0.00030164,7]
[364650235,1749179449433,-480.0,0.00030164,7]
[364650236,1749179449444,-480.0,0.00030164,7]
[364650237,1749179449455,-480.0,0.00030164,7]
[364650238,1749179449465,-1253.54,0.00030164,7]
[364650239,1749179449475,-1964.53,0.00030164,7]
[364650240,1749179449486,-1988.93,0.00030164,7]
[364650241,1749179449497,-588.97230922,0.00030164,7]
[364650242,1749179449508,-480.0,0.00030164,7]
[364650243,1749179449519,-480.0,0.00030164,7]
[364650244,1749179449532,-480.0,0.00030164,7]
[364650245,1749179449542,-480.0,0.00030164,7]
[364650246,1749179449552,-661.88,0.00030164,7]
[364650247,1749179449563,-764.37,0.00030164,7]
[364650248,1749179449574,-480.0,0.00030164,7]
[364650249,1749179449585,-889.01,0.00030164,7]
[364650250,1749179449598,-480.0,0.00030164,7]
[364650251,1749179449608,-698.82,0.00030164,7]
[364650252,1749179449619,-480.0,0.00030164,7]
[364650253,1749179449630,-480.0,0.00030164,7]
[364650254,1749179449640,-480.0,0.00030164,7]
[364650255,1749179449650,-1741.01,0.00030164,7]
[364650256,1749179449661,-480.0,0.00030164,7]
[364650257,1749179449672,-480.0,0.00030164,7]
[364650258,1749179449683,-480.0,0.00030164,7]
[364650259,1749179449693,-10077.58,0.00030164,7]
[364650260,1749179449704,-630.6,0.00030164,7]
[364650261,1749179449716,-509.62868704,0.00030164,5]
[364650262,1749179449726,-1184.25,0.00030164,7]
[364650263,1749179449737,-480.0,0.00030164,7]
[364650264,1749179449747,-4788.06,0.00030164,7]
[364650265,1749179449759,-1245.54,0.00030164,7]
[364650266,1749179449770,-2608.37,0.00030164,7]